bitfinex/quotes_BTCUSD_20210101
["timestamp","ask_amount","ask_price","bid_price","bid_amount"]
[1609463198734,3.251414,29089.0,29088.0,0.24106568]
[1609463199132,3.736414,29089.0,29088.0,0.24106568]
[1609463199363,3.736414,29089.0,29083.0,0.2759392]
[1609463199567,0.361416,29087.0,29083.0,0.2759392]
[1609463200064,0.0002,29088.0,29083.0,0.2759392]
[1609463200268,0.0002,29089.0,29083.0,0.2759392]
[1609463200471,0.0002,29089.0,29088.0,0.28913961]
[1609463200766,0.361618,29089.0,29088.0,0.28913961]
[1609463200968,2.011418,29089.0,29088.0,0.28913961]
[1609463201668,2.016418,29089.0,29088.0,0.28913961]
[1609463201870,2.011418,29089.0,29088.0,0.26913961]
[1609463202364,2.311418,29089.0,29088.0,0.26913961]
[1609463202564,0.661418,29089.0,29088.0,0.26913961]
[1609463202772,0.361418,29089.0,29088.0,0.26913961]
[1609463203570,2.961418,29089.0,29088.0,0.26413961]
[1609463203969,2.961418,29089.0,29084.0,0.21509215]
[1609463204266,0.445,29088.0,29084.0,0.21509215]
[1609463204570,0.361418,29087.0,29084.0,0.21509215]
[1609463204770,0.0002,29088.0,29085.0,0.020018]
[1609463204988,0.0002,29087.0,29085.0,0.020018]
[1609463205487,0.00646252,29089.0,29085.0,0.020018]
[1609463205784,0.00646252,29089.0,29084.0,0.09972]
[1609463206384,0.28509625,29094.0,29085.0,0.020017]
[1609463206590,0.00626715,29088.0,29084.0,0.07472]
[1609463206786,0.00626715,29088.0,29085.0,0.020017]
[1609463207085,0.00626715,29088.0,29085.0,0.36031756]
[1609463207293,0.00126715,29088.0,29085.0,0.55410756]
[1609463208819,0.0657179,29093.0,29085.0,0.55410756]
[1609463209118,0.361418,29092.0,29085.0,0.53409056]
[1609463209323,0.511418,29092.0,29085.0,0.34030056]
[1609463209819,0.361418,29090.0,29085.0,0.34030056]
[1609463210219,0.06572696,29091.0,29085.0,0.34030056]
[1609463210422,0.361418,29090.0,29085.0,0.34030056]
[1609463210661,0.06592696,29091.0,29086.0,0.020014]
[1609463210855,0.00055109,29089.0,29086.0,0.020014]
[1609463211959,0.06567309,29088.0,29086.0,0.020014]
[1609463212358,0.06587309,29088.0,29086.0,0.020014]
[1609463212553,0.06587309,29088.0,29086.0,0.015014]
[1609463213654,1.2,29087.0,29086.0,0.015014]
[1609463213856,0.235,29087.0,29086.0,0.015014]
[1609463214054,0.05,29087.0,29086.0,0.015014]
[1609463214684,0.11568088,29087.0,29086.0,0.015014]
[1609463215590,0.05,29087.0,29086.0,0.015014]
[1609463216389,0.1156824,29087.0,29086.0,0.015014]
[1609463216790,0.05,29087.0,29086.0,0.015014]
[1609463217591,0.0002,29088.0,29087.0,4.15]
[1609463217798,0.00045152,29089.0,29087.0,4.835013]
[1609463218040,0.00045152,29089.0,29088.0,0.015012]
[1609463218689,0.06607117,29089.0,29088.0,0.015012]
[1609463220513,0.06607117,29089.0,29088.0,0.220012]
[1609463220714,1.22518093,29096.0,29089.0,0.6]
[1609463220916,1.21518093,29096.0,29093.0,0.18252517]
[1609463221117,0.361417,29095.0,29093.0,0.18252517]
[1609463221318,0.831417,29095.0,29091.0,0.10452]
[1609463221519,0.47,29095.0,29091.0,0.10452]
[1609463221713,0.36,29094.0,29091.0,0.10452]
[1609463221915,0.365,29094.0,29091.0,0.10452]
[1609463222116,0.61519626,29096.0,29090.0,0.5149]
[1609463222316,0.245,29095.0,29090.0,0.5149]
[1609463222515,0.245,29095.0,29091.0,0.014999]
[1609463222816,3.0,29094.0,29090.0,0.50279844]
[1609463223221,0.3244326,29094.0,29090.0,0.51821622]
[1609463223417,0.175,29093.0,29090.0,0.51821622]
[1609463224254,0.61519626,29096.0,29090.0,0.51821622]
[1609463224560,0.61539626,29096.0,29090.0,0.51821622]
[1609463225153,0.61539626,29096.0,29090.0,0.50821622]
[1609463226669,0.215,29095.0,29090.0,0.50821622]
[1609463227067,0.2152,29095.0,29090.0,0.50821622]
[1609463229674,0.275,29094.0,29090.0,0.50821622]
[1609463229874,0.0002,29094.0,29090.0,0.50821622]
[1609463230472,0.61539626,29096.0,29090.0,0.50321622]
[1609463230674,0.24,29095.0,29090.0,0.50321622]
[1609463230872,0.2402,29095.0,29090.0,0.50321622]
[1609463232396,0.275,29094.0,29090.0,0.50321622]
[1609463232593,0.165,29093.0,29090.0,0.50321622]
[1609463232993,0.0002,29094.0,29090.0,0.50321622]
[1609463233196,0.0002,29095.0,29090.0,0.50321622]
[1609463233393,0.0002,29095.0,29090.0,0.49321622]
[1609463233795,0.61539626,29096.0,29090.0,0.49321622]
[1609463234098,0.33443922,29095.0,29090.0,0.49321622]
[1609463234295,0.33463922,29095.0,29090.0,0.49321622]
[1609463234798,0.33963922,29095.0,29090.0,0.49321622]
[1609463234998,0.361414,29094.0,29090.0,0.49321622]
[1609463235202,0.69508212,29094.0,29090.0,0.01541778]
[1609463235403,0.4214308,29093.0,29090.0,0.01541778]
[1609463235599,0.366414,29092.0,29090.0,0.01541778]
[1609463235801,0.6984409,29093.0,29090.0,0.01541778]
[1609463235999,0.2820101,29093.0,29090.0,0.01541778]
[1609463236203,0.17,29092.0,29090.0,0.01541778]
[1609463236404,0.86344058,29092.0,29090.0,0.01541778]
[1609463236604,3.666414,29091.0,29090.0,0.01041778]
[1609463237017,4.23959974,29091.0,29090.0,0.01041778]
[1609463237418,4.90459974,29091.0,29090.0,0.01041778]
[1609463237615,5.26601374,29091.0,29090.0,0.01041778]
[1609463238420,4.90459974,29091.0,29090.0,0.01041778]
[1609463239205,1.60459974,29091.0,29090.0,0.01041778]
[1609463239406,5.11601374,29091.0,29090.0,0.01041778]
[1609463239607,4.7932328,29091.0,29090.0,0.01041778]
[1609463239910,2.33463043,29091.0,29090.0,0.01041778]
[1609463240104,2.30116231,29091.0,29090.0,0.01041778]
[1609463240307,1.9682328,29091.0,29090.0,0.01041778]
[1609463240646,3.69458222,29090.0,29084.0,0.27080824]
[1609463240844,3.69478222,29090.0,29084.0,0.26637824]
[1609463241248,2.23362565,29085.0,29084.0,0.26511824]
[1609463241444,1.06862565,29085.0,29084.0,0.26511824]
[1609463241647,1.0105126,29085.0,29084.0,0.26511824]
[1609463241844,0.3605126,29085.0,29084.0,0.26511824]
[1609463242546,0.27688695,29085.0,29084.0,0.26511824]
[1609463243146,0.08363041,29085.0,29084.0,0.26511824]
[1609463243345,0.08363041,29085.0,29084.0,0.25111824]
[1609463243547,0.08363041,29085.0,29084.0,0.24262824]
[1609463243748,0.27708293,29086.0,29084.0,0.24262824]
[1609463243950,0.08363276,29085.0,29084.0,0.23762824]
[1609463245775,0.36044017,29085.0,29084.0,0.23762824]
[1609463245973,0.0002,29086.0,29084.0,0.23762824]
[1609463246277,0.00039352,29086.0,29084.0,0.23762824]
[1609463246575,1.7267611,29085.0,29084.0,0.23762824]
[1609463246772,0.2767611,29085.0,29084.0,0.23762824]
[1609463246974,0.2767611,29085.0,29084.0,1.39262824]
[1609463247172,0.2767611,29085.0,29084.0,0.39262824]
[1609463247374,0.08364219,29085.0,29084.0,0.39262824]
[1609463247573,0.36047636,29085.0,29084.0,0.39262824]
[1609463248075,0.08364219,29085.0,29084.0,0.39262824]
[1609463248275,0.36047913,29085.0,29084.0,0.39262824]
[1609463248673,0.08364219,29085.0,29084.0,0.39262824]
[1609463248872,0.08364219,29085.0,29084.0,0.40351524]
[1609463249271,0.35532918,29085.0,29084.0,0.24851524]
[1609463249675,0.00039352,29086.0,29084.0,0.24851524]
[1609463249875,0.03386164,29086.0,29084.0,0.24851524]
[1609463250094,0.27228318,29087.0,29084.0,0.24851524]
[1609463250294,0.27411546,29085.0,29084.0,0.24851524]
[1609463250594,0.27411697,29086.0,29084.0,0.24851524]
[1609463250796,0.27411697,29086.0,29084.0,0.38851524]
[1609463251094,0.27411693,29085.0,29084.0,0.150887]
[1609463251296,0.27411693,29085.0,29084.0,0.010887]
[1609463251498,0.27411645,29088.0,29084.0,0.32960596]
[1609463251994,0.03346812,29087.0,29084.0,0.32960596]
[1609463252595,0.27411645,29088.0,29084.0,0.32960596]
[1609463253095,0.17846812,29088.0,29084.0,0.32960596]
[1609463253298,0.27412446,29089.0,29084.0,0.32960596]
[1609463253496,0.27411063,29087.0,29084.0,0.32960596]
[1609463253788,0.27411063,29087.0,29084.0,0.010887]
[1609463253953,0.27430824,29089.0,29084.0,0.010887]
[1609463254153,0.27410824,29089.0,29084.0,0.010887]
[1609463254753,0.27430824,29089.0,29084.0,0.010887]
[1609463256188,0.361414,29088.0,29084.0,0.010887]
[1609463256385,0.19346812,29087.0,29084.0,0.010887]
[1609463256588,0.361414,29086.0,29084.0,0.010887]
[1609463256790,0.64052108,29086.0,29084.0,0.010887]
[1609463256986,3.17410779,29085.0,29084.0,0.010887]
[1609463257186,3.53552179,29085.0,29084.0,0.010887]
[1609463257487,4.09552179,29085.0,29084.0,0.010887]
[1609463257792,4.49552179,29085.0,29084.0,0.010887]
[1609463257991,4.12898991,29085.0,29084.0,0.010887]
[1609463258390,5.38398991,29085.0,29084.0,0.010887]
[1609463258689,6.04086129,29085.0,29084.0,0.010887]
[1609463258891,6.44086129,29085.0,29084.0,7e-06]
[1609463259719,6.75144715,29085.0,29084.0,7e-06]
[1609463259915,7.51152281,29085.0,29084.0,7e-06]
[1609463260117,9.21152281,29085.0,29084.0,7e-06]
[1609463260317,8.65858561,29085.0,29084.0,7e-06]
[1609463260523,0.361414,29080.0,29073.0,0.000606]
[1609463260718,0.366414,29076.0,29073.0,0.000606]
[1609463260920,0.361414,29074.0,29073.0,0.000606]
[1609463261124,0.594754,29074.0,29073.0,0.000606]
[1609463261326,0.62822212,29074.0,29073.0,0.000606]
[1609463261527,0.88568919,29074.0,29068.0,0.20849814]
[1609463261724,0.14,29073.0,29068.0,0.20849814]
[1609463261920,0.29093519,29074.0,29068.0,0.20849814]
[1609463262121,0.00417246,29073.0,29068.0,0.19849814]
[1609463262317,0.00417246,29073.0,29068.0,0.13849814]
[1609463263220,0.21929,29074.0,29068.0,0.13849814]
[1609463263423,0.21929,29074.0,29072.0,0.17488009]
[1609463263826,0.0002,29075.0,29072.0,0.17488009]
[1609463264034,0.0002,29076.0,29072.0,0.17488009]
[1609463264231,0.0002,29076.0,29073.0,1.0]
[1609463264425,0.00416942,29079.0,29073.0,1.0]
[1609463264623,0.00416942,29079.0,29078.0,0.30523271]
[1609463264822,0.00436923,29080.0,29078.0,0.30523271]
[1609463265041,0.00416923,29080.0,29078.0,0.30523271]
[1609463266148,0.00436936,29081.0,29078.0,0.28023271]
[1609463266443,0.00416936,29081.0,29078.0,0.28023271]
[1609463267444,0.00436936,29081.0,29078.0,0.28023271]
[1609463267644,0.00416918,29080.0,29078.0,0.28023271]
[1609463268041,0.00436918,29080.0,29078.0,0.28023271]
[1609463268243,0.00487709,29080.0,29078.0,0.28023271]
[1609463268444,0.00467709,29080.0,29078.0,0.28023271]
[1609463269107,0.361414,29079.0,29078.0,0.28023271]
[1609463269304,3.216414,29079.0,29078.0,0.28023271]
[1609463269501,2.926401,29079.0,29078.0,0.27523271]
[1609463269699,0.926401,29079.0,29078.0,0.27523271]
[1609463270001,0.071401,29079.0,29073.0,0.32429087]
[1609463270200,1.0,29079.0,29073.0,0.32429087]
[1609463270497,0.195,29078.0,29074.0,0.2901]
[1609463271128,0.366427,29077.0,29073.0,0.32429087]
[1609463271334,4.511427,29074.0,29068.0,0.1857698]
[1609463271535,0.85846812,29073.0,29064.0,0.23176221]
[1609463271735,0.6872,29074.0,29069.0,0.32043317]
[1609463271934,0.6872,29074.0,29070.0,0.29015]
[1609463271935,0.4,29073.0,29070.0,0.29015]
[1609463272132,1.0,29076.0,29071.0,0.29014]
[1609463272336,0.361427,29075.0,29069.0,0.32043317]
[1609463272529,0.03346812,29074.0,29069.0,0.32043317]
[1609463272829,0.255,29075.0,29069.0,0.32043317]
[1609463273030,0.2552,29075.0,29070.0,0.290148]
[1609463273229,0.0002,29075.0,29069.0,0.32043317]
[1609463273431,1.0002,29076.0,29073.0,0.33029988]
[1609463273632,0.361427,29075.0,29073.0,0.33029988]
[1609463273827,0.571427,29075.0,29073.0,0.33029988]
[1609463274129,0.571627,29075.0,29073.0,0.33029988]
[1609463274327,0.571627,29075.0,29074.0,0.18677955]
[1609463274562,0.571427,29075.0,29074.0,0.18677955]
[1609463274965,0.571427,29075.0,29073.0,0.33029988]
[1609463275167,0.581427,29074.0,29066.0,0.6885]
[1609463275368,0.581427,29074.0,29065.0,0.28322197]
[1609463275567,0.03346812,29073.0,29065.0,0.28322197]
[1609463275767,0.361427,29072.0,29065.0,0.28322197]
[1609463275972,0.22,29074.0,29070.0,0.23437476]
[1609463276168,0.361427,29073.0,29070.0,0.23437476]
[1609463277271,0.0052,29075.0,29070.0,0.23437476]
[1609463277572,0.415,29074.0,29070.0,0.22437476]
[1609463277769,0.361438,29073.0,29070.0,0.21937476]
[1609463277968,0.005,29075.0,29070.0,0.21937476]
[1609463278169,0.5155,29076.0,29071.0,0.299007]
[1609463278170,0.5205,29076.0,29071.0,0.299007]
[1609463278371,0.5155,29076.0,29075.0,0.26544601]
[1609463278569,1.876738,29076.0,29075.0,0.26544601]
[1609463278766,2.261738,29076.0,29075.0,0.25544601]
[1609463278968,1.261738,29076.0,29075.0,0.25544601]
[1609463279369,0.746438,29076.0,29075.0,0.25544601]
[1609463279570,0.361438,29076.0,29075.0,0.25544601]
[1609463280188,0.0002,29079.0,29075.0,0.25544601]
[1609463280397,0.0002,29080.0,29075.0,1.55440201]
[1609463280597,0.0002,29080.0,29076.0,1.298942]
[1609463280790,0.0002,29080.0,29078.0,0.298921]
[1609463280990,0.12527454,29081.0,29078.0,0.298921]
[1609463281492,0.12507454,29081.0,29075.0,0.25544601]
[1609463281693,0.135,29080.0,29076.0,0.298938]
[1609463281889,0.12507454,29081.0,29076.0,0.298938]
[1609463282095,0.35604502,29080.0,29076.0,0.298938]
[1609463282793,0.35584502,29080.0,29076.0,0.298938]
[1609463282992,0.35541399,29083.0,29076.0,0.298938]
[1609463283189,0.35521399,29083.0,29076.0,0.298938]
[1609463283397,0.0002,29084.0,29074.0,0.5151]
[1609463283594,0.35522672,29082.0,29075.0,1.298949]
[1609463284129,0.45902269,29086.0,29074.0,0.5151]
[1609463284130,0.611438,29085.0,29074.0,0.5151]
[1609463284430,0.3552908,29081.0,29074.0,1.5151]
[1609463284628,0.3552908,29081.0,29075.0,0.28395]
[1609463284826,0.3552908,29081.0,29080.0,0.28331693]
[1609463285029,0.361416,29081.0,29080.0,0.28331693]
[1609463285336,0.35330019,29081.0,29080.0,0.56221693]
[1609463285761,0.00052471,29082.0,29080.0,0.27831693]
[1609463285963,1.111416,29081.0,29080.0,0.27831693]
[1609463286268,1.67971607,29081.0,29080.0,0.27831693]
[1609463286665,1.67971607,29081.0,29080.0,0.27331693]
[1609463287366,1.68471607,29081.0,29080.0,0.27331693]
[1609463287862,2.33471607,29081.0,29080.0,0.27331693]
[1609463288559,1.68471607,29081.0,29080.0,0.27331693]
[1609463289690,1.68471607,29081.0,29075.0,0.91110687]
[1609463289890,0.2752,29080.0,29076.0,0.28394]
[1609463290089,0.0052,29080.0,29079.0,0.2505025]
[1609463290292,0.0052,29080.0,29079.0,0.5344145]
[1609463290494,1.80342835,29080.0,29079.0,0.5344145]
[1609463290895,2.97342835,29080.0,29079.0,0.5344145]
[1609463291093,0.62342835,29080.0,29079.0,0.5344145]
[1609463291292,0.35342835,29080.0,29079.0,0.5344145]
[1609463291893,0.35369456,29081.0,29079.0,0.5344145]
[1609463292100,0.00072273,29082.0,29080.0,0.283901]
[1609463292495,0.35349669,29081.0,29080.0,0.283901]
[1609463292697,1.50349669,29081.0,29080.0,0.283901]
[1609463293004,0.35349669,29081.0,29080.0,0.283901]
[1609463293199,0.35349669,29081.0,29080.0,1.38576447]
[1609463293418,0.35349669,29081.0,29080.0,5.433901]
[1609463293419,0.22184868,29081.0,29080.0,5.433901]
[1609463294100,0.0002,29082.0,29080.0,5.433901]
[1609463294300,0.12525733,29085.0,29081.0,5.15]
[1609463294500,0.12525733,29085.0,29084.0,2.383854]
[1609463294798,0.12525733,29085.0,29084.0,1.283854]
[1609463295129,0.12523389,29087.0,29084.0,0.283854]
[1609463295425,0.12523389,29087.0,29086.0,0.56000925]
[1609463295732,0.16478173,29090.0,29086.0,0.56000925]
[1609463298727,0.03958222,29090.0,29086.0,0.56000925]
[1609463298956,0.03978222,29090.0,29086.0,0.56000925]
[1609463299760,0.03978222,29090.0,29086.0,0.27618025]
[1609463299761,0.361416,29089.0,29086.0,0.27618025]
[1609463299966,0.604766,29089.0,29086.0,0.27618025]
[1609463300159,0.24335,29089.0,29087.0,0.01312845]
[1609463300796,0.24335,29089.0,29088.0,0.283805]
[1609463300997,0.03958222,29090.0,29088.0,0.283805]
[1609463301298,0.03958222,29090.0,29087.0,0.01312845]
[1609463301596,0.03978222,29090.0,29088.0,0.283802]
[1609463302596,0.03978222,29090.0,29088.0,1.283802]
[1609463302805,0.1251179,29091.0,29090.0,4.15]
[1609463303105,0.00038628,29091.0,29090.0,5.657729]
[1609463303507,1.37724806,29096.0,29095.0,0.283723]
[1609463303508,0.61519626,29096.0,29095.0,0.283723]
[1609463303698,0.61519626,29096.0,29095.0,0.54949333]
[1609463305222,0.85519626,29096.0,29095.0,0.54949333]
[1609463305425,0.85519626,29096.0,29095.0,0.26577033]
[1609463305622,1.21661226,29096.0,29095.0,0.26577033]
[1609463306220,0.85519626,29096.0,29095.0,0.26577033]
[1609463306422,1.21661226,29096.0,29095.0,0.26577033]
[1609463307023,1.21661226,29096.0,29095.0,1.26577033]
[1609463307233,0.76192244,29099.0,29097.0,1.0]
[1609463307536,4.0062,29100.0,29099.0,4.15]
[1609463307730,4.0054,29100.0,29099.0,5.54647122]
[1609463308031,3.34445269,29100.0,29099.0,5.83014222]
[1609463308225,0.5058,29100.0,29099.0,5.83014222]
[1609463308432,0.0008,29102.0,29099.0,5.83014222]
[1609463308433,0.0004,29106.0,29099.0,5.83014222]
[1609463308629,1.0002,29111.0,29099.0,5.83014222]
[1609463308839,0.48677345,29111.0,29110.0,0.32628789]
[1609463309035,0.4328759,29111.0,29110.0,2.12442689]
[1609463309231,0.4328759,29111.0,29110.0,2.52089811]
[1609463309427,0.0781035,29111.0,29110.0,2.52089811]
[1609463309828,0.0781035,29111.0,29110.0,3.01089811]
[1609463310273,0.0781035,29111.0,29110.0,2.99089811]
[1609463311176,0.0731035,29111.0,29110.0,2.99089811]
[1609463312576,0.0731035,29111.0,29110.0,1.99089811]
[1609463312882,1.0395195,29111.0,29110.0,0.79628789]
[1609463313182,1.0395195,29111.0,29105.0,0.22096529]
[1609463313479,0.39988412,29109.0,29101.0,0.65260454]
[1609463313679,0.005,29109.0,29105.0,0.32076446]
[1609463313951,0.0002,29110.0,29106.0,0.68005722]
[1609463314142,0.0731035,29111.0,29105.0,0.32076446]
[1609463314143,0.366416,29109.0,29105.0,0.32076446]
[1609463314443,0.0783035,29111.0,29108.0,0.283562]
[1609463314747,0.0052,29110.0,29108.0,0.283562]
[1609463314943,0.0002,29110.0,29109.0,2.733552]
[1609463315141,0.0731035,29111.0,29110.0,4.19647122]
[1609463315437,0.0731035,29111.0,29110.0,0.729539]
[1609463315633,0.0731035,29111.0,29110.0,0.269539]
[1609463315836,0.0731035,29111.0,29110.0,1.269539]
[1609463316036,0.00285792,29113.0,29110.0,1.269539]
[1609463316248,0.0008,29114.0,29111.0,5.54647122]
[1609463316444,0.0008,29114.0,29113.0,1.61598722]
[1609463316636,0.0008,29114.0,29113.0,2.219516]
[1609463316836,0.0008,29114.0,29113.0,2.399516]
[1609463317037,0.0008,29114.0,29113.0,3.399516]
[1609463317350,0.73604038,29121.0,29115.0,3.9]
[1609463317541,0.361342,29120.0,29113.0,0.36599556]
[1609463317740,0.361342,29120.0,29113.0,0.18599556]
[1609463317741,0.31372086,29119.0,29113.0,0.18599556]
[1609463317938,0.361342,29118.0,29113.0,0.18599556]
[1609463318144,0.31372086,29119.0,29117.0,0.19522309]
[1609463318349,0.30872086,29119.0,29118.0,0.269459]
[1609463318545,0.0002,29120.0,29118.0,0.269459]
[1609463318745,0.0002,29120.0,29118.0,0.06037027]
[1609463318945,0.0002,29120.0,29117.0,0.28634309]
[1609463318946,0.22164037,29121.0,29117.0,0.28634309]
[1609463319447,0.22164037,29121.0,29117.0,0.28134309]
[1609463319661,0.30639101,29120.0,29118.0,0.060371]
[1609463319863,0.30659101,29120.0,29117.0,0.28134309]
[1609463320164,0.0002,29120.0,29118.0,0.250371]
[1609463320361,0.361329,29119.0,29117.0,0.28134309]
[1609463320564,0.22164037,29121.0,29118.0,0.2786398]
[1609463320959,0.22164037,29121.0,29119.0,1.0]
[1609463321170,0.00234037,29121.0,29120.0,2.460364]
[1609463321370,0.00214037,29121.0,29120.0,4.41683522]
[1609463321569,0.0002,29123.0,29120.0,3.990364]
[1609463321772,0.00034037,29125.0,29121.0,5.54647122]
[1609463321966,0.30677662,29125.0,29122.0,1.42682722]
[1609463322167,0.30677662,29125.0,29124.0,2.20905024]
[1609463322369,0.30677662,29125.0,29124.0,2.51286146]
[1609463322566,0.28677662,29125.0,29124.0,2.17033024]
[1609463323868,0.30611491,29126.0,29125.0,1.89647122]
[1609463324068,0.30611491,29126.0,29125.0,2.05181822]
[1609463324664,0.25221736,29126.0,29125.0,2.05181822]
[1609463325065,0.0002,29127.0,29125.0,4.70181822]
[1609463325328,0.1316,29129.0,29128.0,4.15]
[1609463325520,0.0004,29129.0,29128.0,5.57680822]
[1609463325724,0.0002,29130.0,29129.0,5.54647122]
[1609463325916,0.0002,29130.0,29129.0,5.42908721]
[1609463326122,0.39634978,29133.0,29130.0,4.15]
[1609463326323,0.39634978,29133.0,29132.0,4.47679622]
[1609463326521,0.38134978,29133.0,29132.0,1.695325]
[1609463326720,0.2502,29135.0,29132.0,1.030325]
[1609463326926,0.06593746,29135.0,29134.0,0.42178922]
[1609463327224,0.06593746,29135.0,29134.0,1.3662604]
[1609463327622,0.06593746,29135.0,29134.0,1.3562604]
[1609463327923,0.06093746,29135.0,29134.0,1.13826696]
[1609463328121,0.0671469,29135.0,29134.0,1.13826696]
[1609463328424,4.2171469,29135.0,29134.0,0.5359424]
[1609463328627,4.5834659,29135.0,29134.0,0.3359424]
[1609463329083,4.57725646,29135.0,29133.0,0.3053205]
[1609463329283,0.06093746,29135.0,29133.0,0.3053205]
[1609463329583,4.516319,29134.0,29133.0,0.3053205]
[1609463329981,4.713819,29134.0,29133.0,0.3053205]
[1609463330181,0.005,29133.0,29130.0,0.01333194]
[1609463330380,0.0052,29133.0,29130.0,0.01333194]
[1609463330782,0.225,29132.0,29130.0,0.01333194]
[1609463331183,4.1,29131.0,29123.0,0.60232456]
[1609463331782,4.1,29131.0,29124.0,0.01087125]
[1609463332084,4.1,29131.0,29124.0,0.60819581]
[1609463332482,4.095,29131.0,29125.0,0.60232456]
[1609463333084,0.06093746,29135.0,29125.0,0.60232456]
[1609463333677,0.42423136,29127.0,29125.0,0.60232456]
[1609463333884,0.42423136,29127.0,29126.0,3.08325731]
[1609463334092,0.05858898,29135.0,29127.0,4.69732456]
[1609463334287,0.05858898,29135.0,29134.0,2.52753996]
[1609463334486,0.05858898,29135.0,29134.0,0.98210452]
[1609463335296,0.05858898,29135.0,29134.0,1.15210452]
[1609463335501,0.05858898,29135.0,29134.0,1.14710452]
[1609463336002,0.01877705,29136.0,29135.0,0.53288224]
[1609463336199,0.01857705,29136.0,29135.0,0.53288224]
[1609463336499,0.01857705,29136.0,29135.0,1.4052068]
[1609463336698,0.01857705,29136.0,29135.0,0.80788224]
[1609463336899,0.00857705,29136.0,29135.0,0.41641102]
[1609463337104,0.00857705,29136.0,29135.0,0.14141102]
[1609463337297,0.60857705,29136.0,29135.0,0.14141102]
[1609463337502,0.0083499,29136.0,29135.0,0.14141102]
[1609463338404,4.4696689,29136.0,29135.0,0.08641102]
[1609463338605,5.01313702,29136.0,29135.0,0.08641102]
[1609463338805,2.95,29135.0,29134.0,0.09996556]
[1609463339008,1.8,29135.0,29134.0,0.09996556]
[1609463339405,0.66792686,29136.0,29134.0,0.09996556]
[1609463339607,0.0085499,29136.0,29134.0,0.09996556]
[1609463339805,0.0085499,29136.0,29134.0,0.69729012]
[1609463340004,0.0085499,29136.0,29134.0,0.09996556]
[1609463340424,0.27852236,29135.0,29134.0,0.09496556]
[1609463340624,1.4,29134.0,29129.0,0.87351]
[1609463340821,1.4,29134.0,29129.0,1.47083456]
[1609463341024,0.26852085,29133.0,29130.0,0.59732456]
[1609463341224,0.26852085,29133.0,29129.0,0.63363]
[1609463341535,0.27840817,29135.0,29129.0,0.5141]
[1609463341728,0.27820817,29135.0,29123.0,0.635]
[1609463341932,0.27820847,29132.0,29124.0,0.98879578]
[1609463342130,0.24820847,29132.0,29125.0,0.59732456]
[1609463342325,0.27723074,29131.0,29125.0,0.59732456]
[1609463342628,0.0002,29134.0,29126.0,0.01502906]
[1609463342827,0.27745605,29135.0,29133.0,0.2910384]
[1609463343324,2.411319,29134.0,29133.0,0.2910384]
[1609463343527,2.05,29134.0,29133.0,0.2660384]
[1609463343728,2.32734181,29134.0,29133.0,0.2660384]
[1609463344035,1.9,29133.0,29132.0,0.0841]
[1609463344202,1.9002,29133.0,29132.0,0.0841]
[1609463344402,0.0002,29133.0,29132.0,0.0841]
[1609463344802,0.27734181,29134.0,29132.0,0.0841]
[1609463345107,0.29390196,29133.0,29132.0,0.0841]
[1609463345306,0.65522096,29133.0,29127.0,0.5142]
[1609463345506,0.29390196,29133.0,29126.0,0.01502906]
[1609463345709,0.29882828,29132.0,29127.0,0.59732456]
[1609463346353,0.29902828,29132.0,29127.0,0.80732456]
[1609463346552,0.29902828,29132.0,29127.0,0.59732456]
[1609463346856,0.00044892,29131.0,29126.0,0.61235362]
[1609463347051,0.00064892,29131.0,29126.0,1.12655362]
[1609463347254,0.29806685,29130.0,29126.0,1.12655362]
[1609463347549,0.29826685,29130.0,29127.0,0.27]
[1609463347853,0.29826685,29130.0,29126.0,0.52922906]
[1609463348054,0.361319,29129.0,29128.0,1.19e-06]
[1609463348357,1.60424948,29129.0,29128.0,1.19e-06]
[1609463348556,0.40267544,29128.0,29116.0,0.5144]
[1609463348759,0.76435776,29127.0,29113.0,0.6423]
[1609463348959,0.79782588,29125.0,29114.0,0.5985322]
[1609463349160,0.40303876,29124.0,29114.0,0.59732456]
[1609463349356,0.39478712,29123.0,29113.0,0.6423]
[1609463349672,0.40303876,29122.0,29113.0,1.23962456]
[1609463349871,0.40303876,29122.0,29113.0,0.59232456]
[1609463350074,0.81287398,29121.0,29112.0,0.59232456]
[1609463350275,0.39478712,29120.0,29112.0,0.59232456]
[1609463350471,0.361519,29120.0,29112.0,0.59232456]
[1609463350771,0.29851089,29119.0,29112.0,0.59232456]
[1609463350969,0.29871089,29119.0,29111.0,0.5936111]
[1609463351273,0.0002,29119.0,29111.0,0.00128654]
[1609463351473,4.0,29117.0,29109.0,1.10682456]
[1609463351673,4.17748,29117.0,29109.0,1.10682456]
[1609463351867,4.57748,29117.0,29109.0,1.10682456]
[1609463352082,0.98655975,29116.0,29109.0,0.5145]
[1609463352274,1.38655975,29116.0,29108.0,0.26340745]
[1609463352477,0.76455776,29115.0,29105.0,0.0002]
[1609463352675,0.4,29107.0,29105.0,0.0002]
[1609463352878,0.23087,29107.0,29105.0,0.0002]
[1609463353070,0.23107,29107.0,29105.0,0.0002]
[1609463353276,0.29860429,29106.0,29105.0,0.0002]
[1609463353676,1.29840429,29106.0,29103.0,0.04222986]
[1609463353875,1.29860429,29106.0,29103.0,0.04222986]
[1609463354180,1.0,29106.0,29103.0,0.04222986]
[1609463354577,1.0,29106.0,29105.0,2.94232456]
[1609463354781,0.9998,29106.0,29103.0,0.04222986]
[1609463354979,0.9998,29106.0,29102.0,0.20248897]
[1609463355398,0.9998,29106.0,29102.0,0.15648897]
[1609463355903,0.84331103,29102.0,29101.0,0.5148]
[1609463356304,0.84331103,29102.0,29101.0,1.5148]
[1609463356502,0.75721377,29102.0,29101.0,1.5148]
[1609463356702,0.75721377,29102.0,29101.0,1.71339065]
[1609463356902,0.75221377,29102.0,29101.0,1.69939065]
[1609463357102,0.0002,29105.0,29102.0,0.41395224]
[1609463357305,0.9998,29106.0,29102.0,0.42859065]
[1609463357509,0.9998,29106.0,29102.0,0.84254289]
[1609463357907,0.9998,29106.0,29105.0,0.50366021]
[1609463358102,0.9998,29106.0,29105.0,1.50366021]
[1609463358509,0.9998,29106.0,29105.0,1.72866021]
[1609463358703,0.9998,29106.0,29105.0,1.54094888]
[1609463359127,0.9998,29106.0,29105.0,0.53835881]
[1609463359327,0.9998,29106.0,29105.0,0.20946997]
[1609463359927,0.9309765,29106.0,29105.0,0.19946997]
[1609463360130,0.80053003,29105.0,29102.0,0.42400868]
[1609463360330,0.00030817,29102.0,29101.0,0.5146]
[1609463360829,0.7960382,29105.0,29102.0,1.65]